fUST/lending_fUST_20250915
["ID","MTS","AMOUNT","RATE_DAILY","PERIOD"]
[385553504,1757892459584,-500.0,0.00023726,2]
[385553505,1757892459605,-500.0,0.00023729,2]
[385553506,1757892459628,-158.16696761,0.00023729,2]
[385553507,1757892459649,-500.0,0.00023729,2]
[385553508,1757892459671,-500.0,0.00023729,2]
[385553509,1757892459692,-500.0,0.00023729,2]
[385553510,1757892459713,-258.65708178,0.0002373,2]
[385553511,1757892459734,-500.0,0.00023741,2]
[385553512,1757892459757,-891.0,0.0002376,3]
[385553513,1757892459780,-2063.26957982,0.0002379,2]
[385553514,1757892459803,-420.0,0.00023817,2]
[385553515,1757892459825,-480.0,0.00023835,3]
[385553516,1757892459848,-480.0,0.00023835,3]
[385553517,1757892459871,-480.0,0.00023835,3]
[385553518,1757892459895,-480.0,0.00023835,3]
[385553519,1757892459917,-480.0,0.00023835,3]
[385553520,1757892459940,-511.09234046,0.00023835,3]
[385553521,1757892459963,-480.0,0.00023835,3]
[385553522,1757892459984,-563.67,0.00023835,3]
[385553523,1757892460007,-480.0,0.00023835,3]
[385553524,1757892460029,-480.0,0.00023835,3]
[385553525,1757892460052,-577.74,0.00023835,3]
[385553526,1757892460074,-480.0,0.00023835,3]
[385553527,1757892460096,-480.0,0.00023835,3]
[385553528,1757892460119,-480.0,0.00023835,3]
[385553529,1757892460140,-480.0,0.00023835,3]
[385553530,1757892460163,-663.69,0.00023835,3]
[385553531,1757892460186,-1173.77,0.00023835,3]
[385553532,1757892460209,-480.0,0.00023835,3]
[385553533,1757892460237,-480.0,0.00023835,3]
[385553534,1757892460259,-480.0,0.00023835,3]
[385553535,1757892460282,-480.0,0.00023835,3]
[385553536,1757892460306,-480.0,0.00023835,3]
[385553537,1757892460330,-891.99,0.00023835,3]
[385553538,1757892460352,-1505.37,0.00023835,3]
[385553539,1757892460376,-8786.84,0.00023835,3]
[385553540,1757892460399,-480.0,0.00023835,3]
[385553541,1757892460421,-480.0,0.00023835,3]
[385553542,1757892460443,-525.25,0.00023835,3]
[385553543,1757892460599,-481.02,0.00023835,3]
[385553544,1757892460622,-480.0,0.00023835,3]
[385553545,1757892460644,-480.0,0.00023835,3]
[385553546,1757892460669,-480.0,0.00023835,3]
[385553547,1757892460691,-480.0,0.00023835,3]
[385553548,1757892460713,-480.0,0.00023835,3]
[385553549,1757892460736,-480.0,0.00023835,3]
[385553550,1757892460760,-480.0,0.00023835,3]
[385553551,1757892460783,-573.61,0.00023835,3]
[385553552,1757892460808,-907.74,0.00023835,3]
[385553553,1757892460831,-497.09,0.00023835,3]
[385553554,1757892460854,-1072.13,0.00023835,3]
[385553555,1757892460878,-1173.22,0.00023835,3]
[385553556,1757892460900,-717.7,0.00023835,3]
[385553557,1757892460926,-929.31,0.00023835,3]
[385553558,1757892460948,-480.0,0.00023835,3]
[385553559,1757892460970,-480.0,0.00023835,3]
[385553560,1757892460991,-480.0,0.00023835,3]
[385553561,1757892461013,-489.04,0.00023835,3]
[385553562,1757892461035,-794.94,0.00023835,3]
[385553563,1757892461057,-480.0,0.00023835,3]
[385553564,1757892461079,-480.0,0.00023835,3]
[385553565,1757892461101,-480.0,0.00023835,3]
[385553566,1757892461124,-480.0,0.00023835,3]
[385553567,1757892461145,-480.0,0.00023835,3]
[385553568,1757892461167,-581.11,0.00023835,3]
[385553569,1757892461188,-480.0,0.00023835,3]
[385553570,1757892461212,-2433.21,0.00023835,3]
[385553571,1757892461238,-990.98,0.00023835,3]
[385553572,1757892461260,-710.52,0.00023835,3]
[385553573,1757892461282,-480.0,0.00023835,3]
[385553574,1757892461303,-480.0,0.00023835,3]
[385553575,1757892461325,-1386.31,0.00023835,3]
[385553576,1757892461347,-1005.59,0.00023835,3]
[385553577,1757892461370,-2547.59,0.00023835,3]
[385553578,1757892461390,-480.0,0.00023835,3]
[385553579,1757892461412,-1964.07,0.00023835,3]
[385553580,1757892461434,-480.0,0.00023835,3]
[385553581,1757892461456,-480.0,0.00023835,3]
[385553582,1757892461478,-480.0,0.00023835,3]
[385553583,1757892461499,-480.0,0.00023835,3]
[385553584,1757892461522,-1435.93,0.00023835,3]
[385553585,1757892461543,-1500.0,0.00023868,2]
[385553586,1757892461565,-1500.0,0.00023868,2]
[385553587,1757892461587,-1500.0,0.00023868,2]
[385553588,1757892461608,-466.43127937,0.00023868,2]
[385553589,1757892461629,-1500.0,0.00023868,2]
[385553590,1757892461650,-500.0,0.00023876,2]
[385553591,1757892461671,-1000.0,0.00023876,2]
[385553592,1757892461692,-1500.0,0.00023905,2]
[385553593,1757892461714,-500.0,0.00023912,2]
[385553594,1757892461739,-500.0,0.00023973,2]
[385553595,1757892461760,-500.0,0.00023973,2]
[385553596,1757892461782,-500.0,0.00023973,2]
[385553597,1757892461803,-500.0,0.00023973,2]
[385553598,1757892461823,-500.0,0.00023973,2]
[385553599,1757892461845,-500.0,0.00023973,2]
[385553600,1757892461865,-500.0,0.00023973,2]
[385553601,1757892461888,-16748.08387194,0.00024,2]
[385553602,1757892461908,-8251.1407106,0.00024,2]
[385553603,1757892461931,-1707.4520018,0.00024,2]
[385553604,1757892461952,-457.77419739,0.00024,2]
[385553605,1757892461974,-1164.07,0.00024,7]
[385553606,1757892461996,-36066.78,0.00024,7]
[385553607,1757892462018,-500.0,0.00024,9]
[385553608,1757892462040,-151.0,0.00024,9]
[385553609,1757892462064,-162.870461,0.00024,7]
[385553610,1757892462085,-851.0,0.00024,2]
[385553611,1757892462105,-1000.0,0.00024,2]
[385553612,1757892462124,-150.0,0.00024,10]
[385553613,1757892462147,-847.27885267,0.00024,7]
[385553614,1757892462168,-217.77739939,0.00024,7]
[385553615,1757892462190,-340.88,0.00024,2]
[385553616,1757892462211,-150.0,0.00024,2]
[385553617,1757892462237,-891.0,0.00024034,3]
[385553618,1757892462260,-155.0,0.00024108,2]
[385553619,1757892462283,-480.0,0.00024109,3]
[385553620,1757892462306,-480.0,0.00024109,3]
[385553621,1757892462327,-480.0,0.00024109,3]
[385553622,1757892462349,-480.0,0.00024109,3]
[385553623,1757892462370,-480.0,0.00024109,3]
[385553624,1757892462392,-480.0,0.00024109,3]
[385553625,1757892462413,-563.67,0.00024109,3]
[385553626,1757892462436,-480.0,0.00024109,3]
[385553627,1757892462457,-480.0,0.00024109,3]
[385553628,1757892462478,-577.74,0.00024109,3]
[385553629,1757892462500,-480.0,0.00024109,3]
[385553630,1757892462522,-480.0,0.00024109,3]
[385553631,1757892462543,-480.0,0.00024109,3]
[385553632,1757892462564,-480.0,0.00024109,3]
[385553633,1757892462585,-663.69,0.00024109,3]
[385553634,1757892462607,-1173.77,0.00024109,3]
[385553635,1757892462629,-480.0,0.00024109,3]
[385553636,1757892462651,-480.0,0.00024109,3]
[385553637,1757892462672,-480.0,0.00024109,3]
[385553638,1757892462696,-480.0,0.00024109,3]
[385553639,1757892462717,-480.0,0.00024109,3]
[385553640,1757892462739,-891.99,0.00024109,3]
[385553641,1757892462761,-1505.37,0.00024109,3]
[385553642,1757892462785,-8786.84,0.00024109,3]
[385553643,1757892462807,-480.0,0.00024109,3]
[385553644,1757892462829,-480.0,0.00024109,3]
[385553645,1757892462851,-525.25,0.00024109,3]
[385553646,1757892462874,-481.02,0.00024109,3]
[385553647,1757892462895,-480.0,0.00024109,3]
[385553648,1757892462916,-480.0,0.00024109,3]
[385553649,1757892462938,-480.0,0.00024109,3]
[385553650,1757892462960,-480.0,0.00024109,3]
[385553651,1757892462982,-480.0,0.00024109,3]
[385553652,1757892463004,-480.0,0.00024109,3]
[385553653,1757892463026,-573.61,0.00024109,3]
[385553654,1757892463048,-907.74,0.00024109,3]
[385553655,1757892463070,-497.09,0.00024109,3]
[385553656,1757892463092,-1072.13,0.00024109,3]
[385553657,1757892463113,-1173.22,0.00024109,3]
[385553658,1757892463135,-717.7,0.00024109,3]
[385553659,1757892463158,-929.31,0.00024109,3]
[385553660,1757892463180,-480.0,0.00024109,3]
[385553661,1757892463204,-480.0,0.00024109,3]
[385553662,1757892463227,-480.0,0.00024109,3]
[385553663,1757892463249,-489.04,0.00024109,3]
[385553664,1757892463271,-794.94,0.00024109,3]
[385553665,1757892463292,-480.0,0.00024109,3]
[385553666,1757892463313,-480.0,0.00024109,3]
[385553667,1757892463335,-480.0,0.00024109,3]
[385553668,1757892463357,-480.0,0.00024109,3]
[385553669,1757892463379,-480.0,0.00024109,3]
[385553670,1757892463401,-581.11,0.00024109,3]
[385553671,1757892463423,-480.0,0.00024109,3]
[385553672,1757892463445,-2433.21,0.00024109,3]
[385553673,1757892463467,-990.98,0.00024109,3]
[385553674,1757892463490,-710.52,0.00024109,3]
[385553675,1757892463514,-480.0,0.00024109,3]
[385553676,1757892463536,-558.19609433,0.00024109,3]
[385553677,1757892463560,-1386.31,0.00024109,3]
[385553678,1757892463582,-1005.59,0.00024109,3]
[385553679,1757892463607,-2547.59,0.00024109,3]
[385553680,1757892463629,-480.0,0.00024109,3]
[385553681,1757892463662,-1964.07,0.00024109,3]
[385553682,1757892463686,-480.0,0.00024109,3]
[385553683,1757892463710,-480.0,0.00024109,3]
[385553684,1757892463733,-480.0,0.00024109,3]
[385553685,1757892463756,-480.0,0.00024109,3]
[385553686,1757892463780,-1435.93,0.00024109,3]
[385553687,1757892463822,-360.0,0.00024155,2]
[385553688,1757892463872,-151.0,0.000242,9]
[385553689,1757892463908,-151.0,0.000242,10]
[385553690,1757892463930,-5000.0,0.00024262,30]
[385553691,1757892463951,-5000.0,0.00024262,30]
[385553692,1757892463972,-5000.0,0.00024262,30]
[385553693,1757892463994,-5000.0,0.00024262,30]
[385553694,1757892464015,-417.15472785,0.00024262,30]
[385553695,1757892464036,-1000.0,0.00024277,2]
[385553696,1757892464058,-419.06823542,0.00024277,2]
[385553697,1757892464080,-1000.0,0.00024277,2]
[385553698,1757892464102,-1000.0,0.00024277,2]
[385553699,1757892464251,-1000.0,0.00024289,2]
[385553700,1757892464275,-2218.15,0.000243,7]
[385553701,1757892464298,-2000.0,0.000243,2]
[385553702,1757892464323,-891.0,0.00024308,3]
[385553703,1757892464345,-480.0,0.00024383,3]
[385553704,1757892464369,-480.0,0.00024383,3]
[385553705,1757892464392,-480.0,0.00024383,3]
[385553706,1757892464416,-480.0,0.00024383,3]
[385553707,1757892464438,-480.0,0.00024383,3]
[385553708,1757892464460,-480.0,0.00024383,3]
[385553709,1757892464482,-563.67,0.00024383,3]
[385553710,1757892464505,-480.0,0.00024383,3]
[385553711,1757892464527,-480.0,0.00024383,3]
[385553712,1757892464549,-577.74,0.00024383,3]
[385553713,1757892464573,-480.0,0.00024383,3]
[385553714,1757892464594,-480.0,0.00024383,3]
[385553715,1757892464617,-480.0,0.00024383,3]
[385553716,1757892464640,-480.0,0.00024383,3]
[385553717,1757892464663,-663.69,0.00024383,3]
[385553718,1757892464687,-1173.77,0.00024383,3]
[385553719,1757892464710,-449.92776307,0.00024383,3]
[385553720,1757892464733,-480.0,0.00024383,3]
[385553721,1757892464755,-480.0,0.00024383,3]
[385553722,1757892464779,-480.0,0.00024383,3]
[385553723,1757892464801,-480.0,0.00024383,3]
[385553724,1757892464824,-891.99,0.00024383,3]
[385553725,1757892464848,-1505.37,0.00024383,3]
[385553726,1757892464873,-8786.84,0.00024383,3]
[385553727,1757892464895,-209.0,0.00024383,2]
[385553728,1757892464917,-480.0,0.00024383,3]
[385553729,1757892464939,-209.0,0.00024383,2]
[385553730,1757892464964,-209.0,0.00024383,2]
[385553731,1757892464986,-209.0,0.00024383,2]
[385553732,1757892465008,-209.0,0.00024383,2]
[385553733,1757892465031,-209.0,0.00024383,2]
[385553734,1757892465055,-480.0,0.00024383,3]
[385553735,1757892465076,-209.0,0.00024383,2]
[385553736,1757892465098,-209.0,0.00024383,2]
[385553737,1757892465120,-209.0,0.00024383,2]
[385553738,1757892465141,-209.0,0.00024383,2]
[385553739,1757892465162,-209.0,0.00024383,2]
[385553740,1757892465185,-525.25,0.00024383,3]
[385553741,1757892465207,-481.02,0.00024383,3]
[385553742,1757892465232,-480.0,0.00024383,3]
[385553743,1757892465255,-480.0,0.00024383,3]
[385553744,1757892465278,-480.0,0.00024383,3]
[385553745,1757892465300,-480.0,0.00024383,3]
[385553746,1757892465324,-480.0,0.00024383,3]
[385553747,1757892465345,-480.0,0.00024383,3]
[385553748,1757892465368,-573.61,0.00024383,3]
[385553749,1757892465390,-497.09,0.00024383,3]
[385553750,1757892465413,-907.74,0.00024383,3]
[385553751,1757892465435,-1072.13,0.00024383,3]
[385553752,1757892465457,-1173.22,0.00024383,3]
[385553753,1757892465479,-717.7,0.00024383,3]
[385553754,1757892465503,-929.31,0.00024383,3]
[385553755,1757892465525,-480.0,0.00024383,3]
[385553756,1757892465547,-480.0,0.00024383,3]
[385553757,1757892465568,-480.0,0.00024383,3]
[385553758,1757892465592,-489.04,0.00024383,3]
[385553759,1757892465616,-794.94,0.00024383,3]
[385553760,1757892465638,-480.0,0.00024383,3]
[385553761,1757892465660,-480.0,0.00024383,3]
[385553762,1757892465685,-480.0,0.00024383,3]
[385553763,1757892465709,-480.0,0.00024383,3]
[385553764,1757892465733,-480.0,0.00024383,3]
[385553765,1757892465756,-581.11,0.00024383,3]
[385553766,1757892465780,-570.87973456,0.00024383,3]
[385553767,1757892465803,-2433.21,0.00024383,3]
[385553768,1757892465827,-990.98,0.00024383,3]
[385553769,1757892465852,-710.52,0.00024383,3]
[385553770,1757892465876,-575.06287023,0.00024383,3]
[385553771,1757892465901,-1386.31,0.00024383,3]
[385553772,1757892465924,-1005.59,0.00024383,3]
[385553773,1757892465950,-2547.59,0.00024383,3]
[385553774,1757892465974,-480.0,0.00024383,3]
[385553775,1757892465998,-1964.07,0.00024383,3]
[385553776,1757892466022,-480.0,0.00024383,3]
[385553777,1757892466047,-480.0,0.00024383,3]
[385553778,1757892466071,-480.0,0.00024383,3]
[385553779,1757892466095,-480.0,0.00024383,3]
[385553780,1757892466120,-1435.93,0.00024383,3]
[385553781,1757892466143,-791.55,0.000244,7]
[385553782,1757892466166,-634.33772207,0.00024416,2]
[385553783,1757892466533,-299.21281442,0.00023561,2]
[385553784,1757892466553,-1365.66227793,0.00024416,2]
[385553785,1757892466574,-2000.0,0.00024416,2]
[385553786,1757892466595,-2000.0,0.00024416,2]
[385553787,1757892466615,-2000.0,0.00024416,2]
[385553788,1757892466635,-586.54967329,0.00024424,2]
[385553789,1757892466654,-120444.22278036,0.0002444,2]
[385553790,1757892466757,-79555.77721964,0.0002444,2]
[385553791,1757892466778,-160.0,0.0002445,4]
[385553792,1757892466800,-161.93251433,0.0002445,5]
[385553793,1757892466821,-693.09143503,0.00024453,2]
[385553804,1757892599034,542.85477791,0.000199,2]
[385553871,1757892632408,-542.85477777,0.00021149,2]
[385553873,1757892632417,-300.0,0.00021816,2]
[385553875,1757892632426,-364.90624998,0.00021817,2]
[385553877,1757892632437,-462.215,0.00021817,2]
[385553935,1757892632999,-10513.128237,0.00021817,2]
[385554024,1757892638204,-8659.77051302,0.00021817,2]
[385554026,1757892638214,-292.54072798,0.00021917,2]
[385554332,1757892645041,-227.78927202,0.00021917,2]
[385554333,1757892645051,-480.0,0.00021917,2]
[385554334,1757892645061,-480.0,0.00021917,2]
[385554335,1757892645070,-878.13,0.00021917,2]
[385554336,1757892645079,-480.0,0.00021917,2]
[385554337,1757892645089,-5125.65,0.00021917,2]
[385554338,1757892645100,-480.0,0.00021917,2]
[385554339,1757892645109,-480.0,0.00021917,2]
[385554340,1757892645119,-480.0,0.00021917,2]
[385554341,1757892645128,-480.0,0.00021917,2]
[385554342,1757892645137,-480.0,0.00021917,2]
[385554343,1757892645146,-480.0,0.00021917,2]
[385554344,1757892645156,-480.0,0.00021917,2]
[385554345,1757892645165,-684.38,0.00021917,2]
[385554346,1757892645174,-480.0,0.00021917,2]
[385554347,1757892645183,-529.52,0.00021917,2]
[385554348,1757892645255,-480.0,0.00021917,2]
[385554349,1757892645265,-542.09,0.00021917,2]
[385554350,1757892645276,-480.0,0.00021917,2]
[385554351,1757892645294,-480.0,0.00021917,2]
[385554352,1757892645322,-480.0,0.00021917,2]
[385554353,1757892645336,-480.0,0.00021917,2]
[385554354,1757892645346,-480.0,0.00021917,2]
[385554355,1757892645357,-480.0,0.00021917,2]
[385554356,1757892645366,-480.0,0.00021917,2]
[385554357,1757892645378,-151.51532533,0.00021917,2]
[385554358,1757892645389,-1419.38,0.00021917,2]
[385554359,1757892645399,-4929.17,0.00021917,2]
[385554360,1757892645408,-480.0,0.00021917,2]
[385554361,1757892645417,-578.07,0.00021917,2]
[385554362,1757892645426,-586.6,0.00021917,2]
[385554363,1757892645435,-480.0,0.00021917,2]
[385554364,1757892645444,-227.25,0.00022,2]
[385554365,1757892645454,-847.27885267,0.00022012,2]
[385554366,1757892645463,-160.0,0.00022012,2]
[385554367,1757892645472,-480.0,0.0002219,3]
[385554368,1757892645481,-480.0,0.0002219,3]
[385554369,1757892645490,-625.41,0.0002219,3]
[385554370,1757892645500,-480.0,0.0002219,3]
[385554371,1757892645509,-480.0,0.0002219,3]
[385554372,1757892645518,-1486.09,0.0002219,3]
[385554373,1757892645528,-520.33,0.00022191,3]
[385554374,1757892645537,-480.0,0.00022191,3]
[385554375,1757892645546,-480.0,0.00022191,3]
[385554376,1757892645555,-878.13,0.00022191,3]
[385554377,1757892645565,-480.0,0.00022191,3]
[385554378,1757892645574,-5125.65,0.00022191,3]
[385554379,1757892645584,-480.0,0.00022191,3]
[385554380,1757892645594,-480.0,0.00022191,3]
[385554381,1757892645603,-480.0,0.00022191,3]
[385554382,1757892645613,-480.0,0.00022191,3]
[385554383,1757892645622,-480.0,0.00022191,3]
[385554384,1757892645631,-569.79233446,0.00022191,3]
[385554385,1757892645640,-480.0,0.00022191,3]
[385554386,1757892645649,-684.38,0.00022191,3]
[385554387,1757892645658,-480.0,0.00022191,3]
[385554388,1757892645669,-529.52,0.00022191,3]
[385554389,1757892645678,-480.0,0.00022191,3]
[385554390,1757892645687,-542.09,0.00022191,3]
[385554391,1757892645696,-480.0,0.00022191,3]
[385554392,1757892645705,-480.0,0.00022191,3]
[385554393,1757892645714,-480.0,0.00022191,3]
[385554394,1757892645723,-480.0,0.00022191,3]
[385554395,1757892645733,-480.0,0.00022191,3]
[385554396,1757892645742,-480.0,0.00022191,3]
[385554397,1757892645751,-480.0,0.00022191,3]
[385554398,1757892645760,-1419.38,0.00022191,3]
[385554399,1757892645770,-4929.17,0.00022191,3]
[385554400,1757892645779,-480.0,0.00022191,3]
[385554401,1757892645788,-578.07,0.00022191,3]
[385554402,1757892645797,-586.6,0.00022191,3]
[385554403,1757892645807,-480.0,0.00022191,3]
[385554404,1757892645816,-542.85477777,0.00022398,2]
[385554405,1757892645827,-480.0,0.00022464,3]
[385554406,1757892645836,-480.0,0.00022464,3]
[385554407,1757892645846,-625.41,0.00022464,3]
[385554408,1757892645855,-480.0,0.00022464,3]
[385554409,1757892645865,-480.0,0.00022464,3]
[385554410,1757892645873,-1486.09,0.00022464,3]
[385554411,1757892645883,-520.33,0.00022465,3]
[385554412,1757892645893,-480.0,0.00022465,3]
[385554414,1757892645902,-480.0,0.00022465,3]
[385554416,1757892645911,-878.13,0.00022465,3]
[385554418,1757892645921,-480.0,0.00022465,3]
[385554419,1757892645931,-5125.65,0.00022465,3]
[385554421,1757892645940,-480.0,0.00022465,3]
[385554423,1757892645949,-480.0,0.00022465,3]
[385554425,1757892645958,-480.0,0.00022465,3]
[385554427,1757892645967,-480.0,0.00022465,3]
[385554429,1757892645976,-480.0,0.00022465,3]
[385554431,1757892645986,-173.9689659,0.00022465,3]
[385554433,1757892645995,-684.38,0.00022465,3]
[385554435,1757892646005,-495.69509768,0.00022465,3]
[385554437,1757892646015,-529.52,0.00022465,3]
[385554439,1757892646024,-480.0,0.00022465,3]
[385554441,1757892646033,-542.09,0.00022465,3]
[385554443,1757892646043,-480.0,0.00022465,3]
[385554445,1757892646051,-480.0,0.00022465,3]
[385554447,1757892646060,-480.0,0.00022465,3]
[385554449,1757892646070,-480.0,0.00022465,3]
[385554451,1757892646079,-480.0,0.00022465,3]
[385554453,1757892646088,-480.0,0.00022465,3]
[385554455,1757892646098,-480.0,0.00022465,3]
[385554457,1757892646108,-1419.38,0.00022465,3]
[385554459,1757892646117,-4464.34777658,0.00022465,3]
[385554469,1757892646204,-464.82222342,0.00022465,3]
[385554471,1757892646215,-480.0,0.00022465,3]
[385554473,1757892646224,-578.07,0.00022465,3]
[385554475,1757892646233,-336.59919137,0.00022465,3]
[385554477,1757892646249,-250.00080863,0.00022465,3]
[385554479,1757892646258,-480.0,0.00022465,3]
[385554482,1757892646268,-500.0,0.00022589,2]
[385554483,1757892646277,-500.0,0.00022589,2]
[385554485,1757892646286,-164.12909394,0.00022738,3]
[385554488,1757892646297,-315.87090606,0.00022738,3]
[385554489,1757892646306,-342.42782134,0.00022738,3]
[385554492,1757892646317,-137.57217866,0.00022738,3]
[385554494,1757892646327,-625.41,0.00022738,3]
[385554496,1757892646336,-480.0,0.00022738,3]
[385554498,1757892646345,-480.0,0.00022738,3]
[385554500,1757892646354,-1486.09,0.00022738,3]
[385554502,1757892646364,-520.33,0.00022739,3]
[385554504,1757892646373,-480.0,0.00022739,3]
[385554506,1757892646382,-480.0,0.00022739,3]
[385554508,1757892646392,-878.13,0.00022739,3]
[385554510,1757892646401,-480.0,0.00022739,3]
[385554512,1757892646410,-2569.76680191,0.00022739,3]
[385554523,1757892646511,-2555.88319809,0.00022739,3]
[385554525,1757892646522,-480.0,0.00022739,3]
[385554527,1757892646531,-480.0,0.00022739,3]
[385554529,1757892646540,-480.0,0.00022739,3]
[385554531,1757892646549,-480.0,0.00022739,3]
[385554533,1757892646558,-480.0,0.00022739,3]
[385554535,1757892646568,-684.38,0.00022739,3]
[385554537,1757892646577,-529.52,0.00022739,3]
[385554539,1757892646586,-480.0,0.00022739,3]
[385554541,1757892646596,-542.09,0.00022739,3]
[385554543,1757892646605,-480.0,0.00022739,3]
[385554545,1757892646615,-480.0,0.00022739,3]
[385554547,1757892646624,-480.0,0.00022739,3]
[385554549,1757892646633,-480.0,0.00022739,3]
[385554551,1757892646642,-480.0,0.00022739,3]
[385554553,1757892646652,-480.0,0.00022739,3]
[385554555,1757892646661,-480.0,0.00022739,3]
[385554557,1757892646670,-1419.38,0.00022739,3]
[385554559,1757892646680,-2328.26319591,0.00022739,3]
[385554589,1757892648529,-170.15,0.00022729,10]
[385554590,1757892648539,-2600.90680409,0.00022739,3]
[385554591,1757892648548,-480.0,0.00022739,3]
[385554592,1757892648558,-578.07,0.00022739,3]
[385554593,1757892648567,-586.6,0.00022739,3]
[385554594,1757892648578,-480.0,0.00022739,3]
[385554595,1757892648587,-500.0,0.00022758,2]
[385554596,1757892648596,-300.0,0.00022913,20]
[385554597,1757892648606,-300.0,0.00022913,20]
[385554598,1757892648615,-300.0,0.00022913,20]
[385554599,1757892648625,-300.0,0.00022913,20]
[385554600,1757892648635,-300.0,0.00022913,20]
[385554601,1757892648644,-300.0,0.00022913,20]
[385554602,1757892648655,-300.0,0.00022913,20]
[385554603,1757892648665,-300.0,0.00022913,20]
[385554604,1757892648675,-300.0,0.00022913,20]
[385554605,1757892648684,-300.0,0.00022913,20]
[385554606,1757892648694,-300.0,0.00022913,20]
[385554607,1757892648704,-300.0,0.00022913,20]
[385554608,1757892648713,-300.0,0.00022913,20]
[385554609,1757892648724,-300.0,0.00022913,20]
[385554610,1757892648734,-300.0,0.00022913,20]
[385554611,1757892648744,-480.0,0.00023012,3]
[385554612,1757892648754,-480.0,0.00023012,3]
[385554613,1757892648764,-625.41,0.00023012,3]
[385554614,1757892648774,-480.0,0.00023012,3]
[385554615,1757892648783,-355.15143953,0.00023012,3]
[385554616,1757892648792,-1486.09,0.00023012,3]
[385554617,1757892648802,-520.33,0.00023013,3]
[385554618,1757892648811,-233.1999649,0.00023013,3]
[385554619,1757892648821,-480.0,0.00023013,3]
[385554620,1757892648831,-480.0,0.00023013,3]
[385554621,1757892648841,-878.13,0.00023013,3]
[385554622,1757892648852,-480.0,0.00023013,3]
[385554623,1757892648863,-904.64158248,0.00023013,3]
[385554624,1757892649053,-252.35106631,0.00021698,2]
[385554625,1757892649063,-4221.00841752,0.00023013,3]
[385554626,1757892649072,-480.0,0.00023013,3]
[385554627,1757892649082,-480.0,0.00023013,3]
[385554628,1757892649091,-480.0,0.00023013,3]
[385554629,1757892649100,-480.0,0.00023013,3]
[385554630,1757892649110,-480.0,0.00023013,3]
[385554631,1757892649119,-684.38,0.00023013,3]
[385554632,1757892649128,-529.52,0.00023013,3]
[385554633,1757892649138,-480.0,0.00023013,3]
[385554634,1757892649146,-542.09,0.00023013,3]
[385554635,1757892649155,-480.0,0.00023013,3]
[385554636,1757892649165,-480.0,0.00023013,3]
[385554637,1757892649174,-480.0,0.00023013,3]
[385554638,1757892649183,-488.75366626,0.00023013,3]
[385554639,1757892649375,-91.85511877,0.00023013,3]
[385554640,1757892649388,-480.0,0.00023013,3]
[385554641,1757892649397,-480.0,0.00023013,3]
[385554642,1757892649406,-335.85334137,0.00023013,3]
[385554643,1757892649415,-1046.33737786,0.00023013,3]
[385554644,1757892802395,280.88144892,0.000199,2]